Cogmind - Beta 13 @@@ ROGUE MODE // 2024.04.19 @ 19:13:43 Player: Powerlich_soros Result: Self-destructed Performance ------------- Evolutions (2) 1000 Regions Visited (3) 600 Robots Destroyed (53) 265 Value Destroyed (1269) 1269 Prototype IDs (4) 80 Alien Tech Used (0) 0 Bonus (84) 84 TOTAL SCORE: 3298 Bonus ------- High Alert Combat Kills 84 Cogmind --------- Core Integrity 550/550 Matter 201/300 Energy 124/125 System Corruption 0% Temperature Cool (2) Movement Flying (37) Location -8/Materials Parts ------- > --- POWER (1) -------- Light Ion Engine > --- PROPULSION (2) --- Improved Flight Unit Improved Flight Unit > --- UTILITY (6) ------ Weight Redist. System > --- WEAPON (2) ------- Spread Laser Rocket Launcher > --- INVENTORY (5) ---- Cooled Ion Engine Flight Unit Flight Unit Flight Unit Peak State ------------ > --- POWER ------------ Light Ion Engine > --- PROPULSION ------- Flight Unit Improved Flight Unit > --- UTILITY ---------- Weight Redist. System Light Armor Plating Hacking Suite > --- WEAPON ----------- Improved Assault Rifle Light Cannon > --- INVENTORY -------- Light Ion Engine Flight Unit Flight Unit Light Cannon Rocket Launcher [Rating: 15] Favorites ----------- Power Ion Engine Engine Ion Engine Propulsion Hover Unit Wheel Wheel Hover Unit Hover Unit Flight Unit Improved Flight Unit Utility Weight Redist. System Device Weight Redist. System Storage Small Storage Unit Hackware Hacking Suite Protection Light Armor Plating Weapon Light Cannon Energy Gun Small Laser Ballistic Gun Assault Rifle Ballistic Cannon Light Cannon Launcher Rocket Launcher Slashing Weapon Mining Claw Special Melee Weapon Datajack Build | -11 -10 -9 -8 ------- Run | Yrd Mat Mat Mat Slots Evolved 4 | . . 2 2 Power . | . . . . Propulsion . | . . . . Utility 4 | . . 2 2 Weapon . | . . . . Parts Attached 51 | 6 22 23 . Power 11 | 1 2 8 . Engine 11 | 1 2 8 . Core . | . . . . Reactor . | . . . . Propulsion 16 | 2 7 7 . Treads . | . . . . Leg . | . . . . Wheel 3 | 2 1 . . Hover 6 | . 6 . . Flight 7 | . . 7 . Utility 4 | 1 2 1 . Device 1 | . 1 . . Storage 1 | 1 . . . Processor . | . . . . Hackware 1 | . 1 . . Protection 1 | . . 1 . Artifact . | . . . . Weapon 20 | 2 11 7 . Energy Gun 3 | 2 . 1 . Energy Cannon . | . . . . Ballistic Gun 5 | . 4 1 . Ballistic Cannon 8 | . 5 3 . Launcher 2 | . 1 1 . Special Weapon . | . . . . Impact Weapon . | . . . . Slashing Weapon 1 | . . 1 . Piercing Weapon . | . . . . Special Melee Weapon 1 | . 1 . . Unidentified Prototypes 4 | . . 4 . Parts Lost 14 | . 4 10 . Power 4 | . 1 3 . Propulsion 4 | . 2 2 . Utility 2 | . . 2 . Weapon 4 | . 1 3 . Highest Loss Streak 5 | . 1 5 . To Critical Strikes . | . . . . Average Slot Usage (%) 81 | . 89 70 54 Engine 11 | . 13 8 9 Wheel 5 | . 9 . . Hover 13 | . 18 7 . Flight 6 | . . 14 18 Device 10 | . 9 11 9 Storage 2 | . 4 . . Hackware 5 | . 4 6 . Energy Gun 6 | . 9 . 9 Ballistic Gun 5 | . 8 . . Ballistic Cannon 12 | . 8 17 . Launcher 1 | . . 1 9 Naked Turns . | . . . . Heaviest Build 14 | 13 13 14 10 Greatest Support 32 | 20 32 18 16 Greatest Overweight (x) 1 | 1 . . . Average Overweight (x) . | . . . . Largest Inventory Capacity 8 | 8 8 5 5 Average Capacity 5 | 7 5 5 5 Most Carried 6 | 2 6 5 4 Average Carried 4 | . 4 4 4 Final Capacity 8 | 8 5 5 5 Final Carried 5 | 2 5 4 4 Class Distribution -------------------- 58% | Mutant 41% | Scavenger-Mutant Dominant Class ---------------- Mutant | -10/Materials Scavenger-Mutant | -9/Materials Mutant | -8/Materials Resources | -11 -10 -9 -8 ----------- Run | Yrd Mat Mat Mat Matter Collected 1447 | 204 596 647 . Remotely . | . . . . Salvage Created 1556 | . 852 704 . Parts 94 | . 48 46 . Haulers Intercepted 5 | . 2 3 . Recyclers Shooed 1 | . . 1 . Parts Field Recycled . | . . . . Retrieved Matter . | . . . . Parts Self-Destructed . | . . . . Prevented . | . . . . Kills | -11 -10 -9 -8 ------- Run | Yrd Mat Mat Mat Combat Hostiles Destroyed 35 | . 16 19 . Guns 11 | . 11 . . Cannons 19 | . 3 16 . AOE 5 | . 2 3 . Classes Destroyed 10 | . 7 3 . Worker 2 | . 1 1 . Builder 1 | . . 1 . Tunneler 1 | . . 1 . Hauler 5 | . 2 3 . Recycler 3 | . 2 1 . Operator 2 | . 2 . . Watcher 4 | . 2 2 . Swarmer 10 | . 3 7 . Grunt 19 | . 13 6 . Sentry 6 | . . 6 . Best Kill Streak 9 | . 3 9 . Combat Bots Only 5 | . 3 5 . Max Kills in Single Turn 2 | . 2 2 . Gunslinging . | . . . . Exploded 1 | . 1 1 . Melee . | . . . . Uniques/NPCs Destroyed . | . . . . Combat | -11 -10 -9 -8 -------- Run | Yrd Mat Mat Mat Hostile Shots Fired 189 | . 95 93 1 Missed 64 | . 27 37 . Damage Taken 1642 | . 788 846 8 Core 374 | . 147 227 . Absorbed by Shields . | . . . . Regen/Repaired (Parts) 29 | . 29 . . Core Remaining (%) 61 | 100 41 43 . Volleys Fired 139 | . 84 55 . Largest 2 | . 2 2 . Hottest 80 | . 80 70 . Shots Fired 271 | . 168 103 . Gun 124 | . 124 . . Cannon 129 | . 36 93 . Launcher 18 | . 8 10 . Special . | . . . . Kinetic 188 | . 95 93 . Thermal 57 | . 57 . . Explosive 18 | . 8 10 . Electromagnetic 8 | . 8 . . Robot Hit Streak 13 | . 13 11 . Robot Miss Streak 7 | . 7 4 . Penetration Max . | . . . . Secondary Targets 1 | . 1 . . Max Gunslinging Chain 1 | . 1 . . Shots Hit Robots 161 | . 98 63 . Core Hits 79 | . 44 35 . Critical Kills . | . . . . Critical Parts Destroyed . | . . . . Critical Strikes 1 | . . 1 . Blast 1 | . . 1 . Melee Attacks 5 | . 2 3 . Impact . | . . . . Slashing 3 | . . 3 . Piercing . | . . . . Sneak Attacks 2 | . 2 . . Combat Hostiles . | . . . . Follow-up Attacks . | . . . . Damage Inflicted 3090 | . 1531 1559 . Guns 940 | . 940 . . Cannons 1502 | . 362 1140 . Explosions 648 | . 229 419 . Melee . | . . . . Ramming . | . . . . Kinetic 2027 | . 887 1140 . Thermal 345 | . 345 . . Explosive 640 | . 221 419 . Electromagnetic 78 | . 78 . . Impact . | . . . . Slashing . | . . . . Piercing . | . . . . Highest Corruption . | . . . . Average Corruption . | . . . . Corruption Purged . | . . . . Corruption Blocked . | . . . . Overload Shots . | . . . . Overflow Damage 42 | . 1 41 . Projectiles 1 | . 1 . . Explosions 41 | . . 41 . Melee . | . . . . Knockbacks 8 | . 3 5 . Impact . | . . . . Kinetic 8 | . 3 5 . Secondary . | . . . . Self-Inflicted Damage 139 | . 30 109 . Shots 2 | . 1 1 . Rammed . | . . . . Targets Rammed . | . . . . Kicked . | . . . . Crushed . | . . . . Highest Temperature 189 | . 189 113 . Average Temperature 43 | . 52 31 . Received Heat Transfer 606 | . 333 273 . Siege Activations . | . . . . Robots Corrupted . | . . . . Combat Hostiles . | . . . . Parts Fried . | . . . . Impact Corruptions . | . . . . Robots Melted . | . . . . Combat Hostiles . | . . . . Parts Melted . | . . . . Heat Transferred 800 | . 800 . . Parts Sabotaged . | . . . . Parts Stolen . | . . . . Parts Stripped . | . . . . Power Chain Reactions . | . . . . Alert | -11 -10 -9 -8 ------- Run | Yrd Mat Mat Mat Peak Influence 668 | . 294 668 297 Initial 282 | . . 124 282 Average 210 | . 110 358 289 Maximum Alert Level 2 | . 1 2 1 Low Security (%) 57 | 100 87 14 . Level 1 26 | . 12 46 100 Level 2 15 | . . 39 . Level 3 . | . . . . Level 4 . | . . . . Level 5 . | . . . . High Security . | . . . . Max Security . | . . . . Squads Dispatched 8 | . 5 3 . Investigation 6 | . 3 3 . Extermination . | . . . . Reinforcement 2 | . 2 . . Assault . | . . . . Garrison . | . . . . Intercept . | . . . . Searches Triggered . | . . . . Construction Impeded . | . . . . Haulers Reinforced . | . . . . Active Scanning Responses . | . . . . Cargo Convoy Interrupts . | . . . . Stealth | -11 -10 -9 -8 --------- Run | Yrd Mat Mat Mat Distress Signals 6 | . 5 1 . Communications Jammed . | . . . . Distress Signals . | . . . . Times Spotted 56 | . 23 31 2 Peak Tracking Total 6 | . 4 6 4 Tactical Retreats 6 | . . 6 . Traps | -11 -10 -9 -8 ------- Run | Yrd Mat Mat Mat Traps Triggered 2 | . 2 . . Indirectly . | . . . . Trap Hack Attempts . | . . . . Triggered . | . . . . Disarmed . | . . . . Reprogrammed . | . . . . Reused . | . . . . Traps Extracted . | . . . . Installed . | . . . . Triggered . | . . . . Machines | -11 -10 -9 -8 ---------- Run | Yrd Mat Mat Mat Machines Disabled 5 | . 3 2 . Max in Single Turn 2 | . 2 2 . Machines Repaired . | . . . . Machines Dismantled . | . . . . Machines Sabotaged . | . . . . Overloaded Fab Kills . | . . . . Hacking | -11 -10 -9 -8 --------- Run | Yrd Mat Mat Mat Machines Accessed 16 | . 5 10 1 Terminals 12 | . 4 8 . Fabricators . | . . . . Repair Stations 1 | . 1 . . Recycling Units 1 | . . . 1 Scanalyzers 2 | . . 2 . Garrison Access . | . . . . Total Hacks 45 | . 18 26 1 Successful 31 | . 12 18 1 Failed 14 | . 6 8 . Catastrophic 1 | . 1 . . Database Lockouts . | . . . . Manual 33 | . 14 19 . Terminals 40 | . 16 24 . Fabricators . | . . . . Repair Stations 2 | . 2 . . Recycling Units 1 | . . . 1 Scanalyzers 2 | . . 2 . Garrison Access . | . . . . Terminal Hacks 10 | . 3 7 . Branch Access Points 2 | . 1 1 . Terminal Index 2 | . 1 1 . Scanalyzer Index 1 | . . 1 . Alert Level 2 | . . 2 . Unreport Threat 1 | . . 1 . Investigation Status 1 | . 1 . . Zone Layout 1 | . . 1 . Fabricator Hacks . | . . . . Repair Station Hacks 2 | . 2 . . Scan Component 1 | . 1 . . Repair 1 | . 1 . . Recycling Unit Hacks 1 | . . . 1 Report Inventory 1 | . . . 1 Scanalyzer . | . . . . Garrison Access Hacks . | . . . . Unauthorized Hacks 18 | . 7 11 . Terminals 16 | . 7 9 . Track 1 | . . 1 . Botnet 10 | . 4 6 . Operators 4 | . 2 2 . Search 1 | . 1 . . Fabricators . | . . . . Repair Stations . | . . . . Recycling Units . | . . . . Scanalyzers 2 | . . 2 . Extract 2 | . . 2 . Garrison Access . | . . . . Data Cores Recovered . | . . . . Used . | . . . . Hacking Detections 13 | . 4 8 1 Full Trace Events 2 | . . 2 . Feedback Events . | . . . . Feedback Blocked . | . . . . Robot Schematics Acquired . | . . . . Robots Built . | . . . . Authchips . | . . . . Time . | . . . . Total Robot Build Rating . | . . . . Part Schematics Acquired 5 | . . 5 . Parts Built . | . . . . Authchips . | . . . . Time . | . . . . Total Part Build Rating . | . . . . Parts Repaired 1 | . 1 . . Time 26 | . 26 . . Parts Recycled . | . . . . Recycled Matter . | . . . . Retrieved Matter . | . . . . Retrieved Components . | . . . . Parts Scanalyzed . | . . . . Part Schematics Acquired . | . . . . Parts Damaged . | . . . . Bothacking | -11 -10 -9 -8 ------------ Run | Yrd Mat Mat Mat Used RIF Installer . | . . . . Robots Hacked . | . . . . Non-combat . | . . . . Combat . | . . . . Robot Hacks Applied . | . . . . Relay Couplers Released . | . . . . Fabnet Peak Effective % . | . . . . Robots Rewired . | . . . . Allies Hacked . | . . . . Hacks Repelled . | . . . . Allies | -11 -10 -9 -8 -------- Run | Yrd Mat Mat Mat Total Allies . | . . . . Largest Group . | . . . . Highest-Rated Group . | . . . . Highest-Rated Ally . | . . . . Total Orders . | . . . . Ally Attacks . | . . . . Total Damage . | . . . . Kills . | . . . . Allies Corrupted . | . . . . Allies Melted . | . . . . Intel | -11 -10 -9 -8 ------- Run | Yrd Mat Mat Mat Robot Analysis Total . | . . . . Derelict Logs Recovered . | . . . . Drone Launches . | . . . . Drone Recoveries . | . . . . Exploration | -11 -10 -9 -8 ------------- Run | Yrd Mat Mat Mat Turns Passed 1918 | 56 1055 783 24 Spaces Moved 2305 | 57 1028 1156 64 Core 26 | 5 . 21 . Treads . | . . . . Legs . | . . . . Wheels 296 | 52 244 . . Hover 1065 | . 784 281 . Flight 918 | . . 854 64 Fastest Speed 37 | 50 56 37 37 Average Speed 51 | 79 61 41 37 Slowest Speed 100 | 100 90 56 37 Overloaded Moves . | . . . . Propulsion Burnouts . | . . . . Robots Hopped 5 | . . 5 . Cave-ins Triggered . | . . . . Exploration Rate (%) 43 | 3 98 65 9 Regions Visited 3 Branch Regions . Pre-discovered Areas . | . . . . Known Exits Taken . | . . . . Unknown Exits Taken 3 | 1 1 1 . Scrap Searched . | . . . . Spaces Dug 28 | . 25 3 . Terrain Destroyed 146 | . 83 63 . Melee 3 | . . 3 . Projectile . | . . . . AOE 143 | . 83 60 . Terrain Rammed . | . . . . Walls Destroyed . | . . . . Machines Disabled . | . . . . Actions | -11 -10 -9 -8 --------- Run | Yrd Mat Mat Mat Total 2742 | 64 1276 1338 64 Wait 203 | . 119 84 . Move 2292 | 56 1027 1145 64 Hop 5 | . . 5 . Pick Up 21 | 2 10 9 . Fast Attach 24 | 6 8 10 . Attach 10 | . 5 5 . Detach 3 | . 2 1 . Swap 17 | . 9 8 . Drop 23 | . 10 13 . Fire 139 | . 84 55 . Melee 5 | . 2 3 . Ram . | . . . . Kick . | . . . . Crush . | . . . . Escape Stasis . | . . . . Rewire . | . . . . Trap . | . . . . Miscellaneous . | . . . . Route ------- -11/Scrapyard -10/Materials (discovered 4 exits: *Mat x3 / *Min) -9/Materials (discovered 3 exits: *Mat / *Min x2) -8/Materials History --------- Turn | Location | Event 17 | -11/Scrapyard | Discovered new exit (range 15) 57 | -11/Scrapyard | Entered Materials 307 | -10/Materials | Build established: Mutant 356 | -10/Materials | Discovered new exit (range 3) 445 | -10/Materials | Discovered new exit (range 14) 581 | -10/Materials | Discovered new exit (range 11) 703 | -10/Materials | Repaired Hover Unit 735 | -10/Materials | Core integrity fell below 50% 850 | -10/Materials | Discovered new exit (range 15) 857 | -10/Materials | Derelicts attacked the area 1103 | -10/Materials | Identified exit to Mines 1112 | -10/Materials | Entered another Materials area 1112 | -9/Materials | Evolved 2 slots: Utility x2 1114 | -9/Materials | Discovered new exit (range 13) 1312 | -9/Materials | Discovered new exit (range 14) 1348 | -9/Materials | Build established: Scavenger-Mutant 1641 | -9/Materials | Lost 5 parts (1p1n2u1w) 1661 | -9/Materials | Identified exit to Mines 1789 | -9/Materials | Core integrity fell below 50% 1810 | -9/Materials | Lost 3 parts (1p2w) 1844 | -9/Materials | Build established: Mutant 1895 | -9/Materials | Entered another Materials area 1895 | -8/Materials | Evolved 2 slots: Utility x2 1919 | -8/Materials | Self-destructed Last Messages --------------- 01849_ Acquired 52 matter. 01873_ K-01 Serf cleans the Recycling Unit. 01874_ Acquired 1 matter. 01879_ Acquired 2 matter. 01887_ Acquired 3 matter. 01888_ Acquired 2 matter. 01888_ Acquired 1 matter. PARAMETERS=UTILITY+2 LOCATION=UNKNOWN GOAL=ESCAPE 01901_ Connecting with Recycling Unit... 01901_ Current location identified: Materials >>Recycling(Report) Matter reserves: 0 Inventory: Hvy. Ion Cannon (58%) Hvy. Rocket Launcher (38%) Prototype Energy Gun (55%) Corrupted Authchip [R/Combat] (100%) 01908_ K-01 Serf collects debris. Map ----- +----------------------------------------------------+ | ?????????????????????????????????????????????????? | | ?????????????????????????????????????????????????? | | ?????????????????????????????????????????????????? | | ?????????????????????????????????????????????????? | | ?????????????????????????????????????????????????? | | ????????????????????????????????????]= ??????????? | | ???????????????????????????????? ? == ??????????? | | ??????????????????????????????# ??????????? | | ??????????????????????????????# ??????????? | | ??????????????????????????????# =!???????#### | | ??????????????????????????????# !!???????# | | ?????????????????????????????? ???????# | | ?????????????????????????????? #??????# "" | | ?????????????????????????????+ +??????# "" | | ?????????????????????????????# #??????# "" | | ?????????????????????????????# "" #??????# | | ?????????????????????????????# "Y #??????# | | ?????????????????????????????# "" #??????# | | ??????????????????????#??????# ########### | | ?????????????????###### ###### | | ?????????? #####+########### | | ?????????????????######### ##### #?# !#??????# | | ?????????????????????????# #???# #?# #??????# | | ???????? ##########+##### ### " "" #??????? | | ???????? + + + "R"" #??????# | | ???????????????######### @ ##### """" #??????# | | ???????????????????????# #???# #??????# | | ???????????????????????#########???########??????# | | ?????????????????????????????????????????????????# | | | | | | | | | | | | | | | | | | | | | | | | | | | | | | | | | | | | | | | | | | | +----------------------------------------------------+ Best States ------------- Heat Dissipation 31 Energy Generation 14 Energy Capacity 280 Matter Stores 300 Matter Capacity 300 Sight Range 16 Terrain Scan Density 10 Additional Mass Support 6 Armor Coverage 150 Evasion (%) 62 Offensive Hacking 10 Item Schematics ----------------- Med. Laser | -9/Materials | Extracted Heat Sink | -9/Materials | Extracted Beam Cannon | -9/Materials | Extracted Assault Rifle | -9/Materials | Extracted Huge Storage Unit | -9/Materials | Extracted Robot Schematics ------------------ None Fabricated ------------ Nothing Alien Tech Used ----------------- None Achievements -------------- None Challenges ------------ None Game ------ Seed GuidanceAntimatterSystem Manual? 0 Play Time 00:44:42 Cumulative 19.6 hours Start 2024.04.19 @ 15:41:28 End 2024.04.19 @ 19:13:43 Sessions 3 Manual Loads 0 Difficulty Rogue Special Mode None Game No. 16 Rogue 16 Adventurer 0 Explorer 0 Win Type - Total 0 Types 0/0/0/0/0/0/0/0/0 Lore% 13 Gallery% 19 Achievement% 18 Wizard Run 0 Options --------- Layout 0 ASCII 1 Keyboard 1 Movement Vi Keybinds 0 Fullscreen 1 Font 20/SmallcapsGlow Map View 66x50 Zoom Use 0% Tactical HUD 1 Map Filters NONE Filters NONE Steam 1 RUN: bc0aed0b-2aaa-437e-8f4f-69b6aa06ced9